bitfinex-derivatives/quotes_BTCF0:USTF0_20250417
["timestamp","ask_amount","ask_price","bid_price","bid_amount"]
[1744897535704,0.1182427,84587.0,84586.0,0.54396391]
[1744897536107,0.1182427,84587.0,84586.0,0.54420391]
[1744897536308,0.1182427,84587.0,84586.0,0.54320391]
[1744897538008,0.005,84592.0,84591.0,0.1182371]
[1744897538210,0.1232357,84592.0,84591.0,0.46003691]
[1744897538405,0.00508,84592.0,84591.0,0.46003691]
[1744897538608,0.1233157,84592.0,84591.0,0.46003691]
[1744897539110,0.1773633,84589.0,84588.0,0.1182371]
[1744897539607,0.1773633,84589.0,84588.0,0.46003691]
[1744897539994,0.1773633,84589.0,84588.0,0.55123691]
[1744897540199,0.1773633,84589.0,84588.0,0.64563691]
[1744897540395,0.1773633,84589.0,84588.0,0.72755691]
[1744897541711,0.1773633,84589.0,84588.0,0.72779691]
[1744897541900,0.1773633,84589.0,84588.0,0.72879691]
[1744897544303,0.1773633,84589.0,84588.0,0.64687691]
[1744897544506,0.1773633,84589.0,84588.0,0.72879691]
[1744897545413,0.1773633,84589.0,84588.0,0.43743981]
[1744897545607,0.1182539,84579.0,84578.0,0.00017736]
[1744897545809,0.1182735,84565.0,84564.0,0.0959]
[1744897546008,0.1382735,84565.0,84564.0,0.43769981]
[1744897546313,0.3286735,84565.0,84564.0,0.31750997]
[1744897546709,0.3286735,84565.0,84564.0,0.31758997]
[1744897546710,0.6894735,84565.0,84564.0,0.31758997]
[1744897547711,0.6894735,84565.0,84564.0,0.22168997]
[1744897548509,0.6904735,84565.0,84564.0,0.22168997]
[1744897548915,0.6934735,84565.0,84564.0,0.22168997]
[1744897549409,0.6904735,84565.0,84564.0,0.22168997]
[1744897549606,0.6934735,84565.0,84564.0,0.22168997]
[1744897551311,0.3326735,84565.0,84564.0,0.22168997]
[1744897551507,0.6934735,84565.0,84564.0,0.22168997]
[1744897552209,0.6904735,84565.0,84564.0,0.22168997]
[1744897552430,0.6934735,84565.0,84564.0,0.34187981]
[1744897552621,0.6934735,84565.0,84564.0,0.46015471]
[1744897553319,0.6904735,84565.0,84564.0,0.46015471]
[1744897553619,0.004,84565.0,84564.0,0.46015471]
[1744897553916,0.1222735,84565.0,84564.0,0.64365471]
[1744897554321,0.2170735,84565.0,84564.0,0.64365471]
[1744897554621,0.004,84565.0,84564.0,0.64365471]
[1744897554817,0.65418802,84580.0,84564.0,0.64365471]
[1744897554818,0.4790567,84578.0,84572.0,0.1182637]
[1744897555018,0.11843966,84573.0,84572.0,0.46006351]
[1744897555325,0.11843966,84573.0,84572.0,0.64016351]
[1744897555622,0.11843966,84573.0,84572.0,0.73726351]
[1744897555815,0.21323966,84573.0,84572.0,0.73726351]
[1744897556016,0.21423966,84573.0,84572.0,0.73726351]
[1744897556221,0.21423966,84573.0,84572.0,0.73734351]
[1744897556422,0.30593966,84573.0,84572.0,0.73734351]
[1744897556720,0.30693966,84573.0,84572.0,0.73734351]
[1744897557523,0.30593966,84573.0,84572.0,0.73734351]
[1744897558021,0.11943966,84573.0,84572.0,0.73734351]
[1744897558322,0.11843966,84573.0,84572.0,0.73734351]
[1744897559315,0.11843966,84573.0,84572.0,0.73934351]
[1744897559937,0.11843966,84573.0,84572.0,0.74034351]
[1744897561525,0.11843966,84573.0,84572.0,0.73834351]
[1744897561724,0.00017736,84573.0,84572.0,0.73734351]
[1744897562024,0.11843966,84573.0,84572.0,0.73834351]
[1744897562213,0.11843966,84573.0,84572.0,0.73934351]
[1744897562414,0.20893966,84573.0,84572.0,0.73926351]
[1744897562616,0.29993966,84573.0,84572.0,0.73934351]
[1744897562816,0.29993966,84573.0,84572.0,0.62107981]
[1744897563123,0.29993966,84573.0,84572.0,0.34387981]
[1744897563325,0.29993966,84573.0,84572.0,0.00208]
[1744897564113,0.29993966,84573.0,84572.0,0.002]
[1744897564317,0.29993966,84573.0,84572.0,0.00108]
[1744897564622,0.29993966,84573.0,84572.0,8e-05]
[1744897565027,0.1182735,84565.0,84564.0,0.10236]
[1744897565216,0.5713735,84565.0,84564.0,0.08236]
[1744897565417,0.5713735,84565.0,84556.0,0.02028536]
[1744897565418,0.1182847,84557.0,84556.0,0.02017736]
[1744897565620,0.4790847,84557.0,84556.0,0.08253736]
[1744897565822,0.4790847,84557.0,84556.0,0.00017736]
[1744897566021,0.4990847,84557.0,84556.0,0.00017736]
[1744897566223,0.6850847,84557.0,84556.0,0.00025736]
[1744897567619,0.6850847,84557.0,84556.0,0.00525736]
[1744897567816,0.6850847,84557.0,84556.0,6e-08]
[1744897568022,0.1183,84546.0,84545.0,0.2384842]
[1744897568321,0.1183112,84538.0,84536.0,0.31848631]
[1744897568630,0.4891112,84538.0,84537.0,0.1233991]
[1744897568824,0.4891112,84538.0,84537.0,0.1234791]
[1744897569225,0.6715112,84538.0,84537.0,0.1234791]
[1744897569425,0.6715112,84538.0,84537.0,0.2144791]
[1744897569627,0.4891112,84538.0,84537.0,0.44008907]
[1744897569827,0.4891112,84538.0,84537.0,0.56027891]
[1744897570027,0.4891112,84538.0,84537.0,0.56327891]
[1744897570230,0.4891112,84538.0,84537.0,0.0121665]
[1744897570526,0.8499112,84538.0,84537.0,0.0120865]
[1744897571324,0.8499112,84538.0,84537.0,0.0121665]
[1744897572031,0.8499112,84538.0,84537.0,0.0120865]
[1744897572231,0.8499112,84538.0,84537.0,0.0121665]
[1744897574237,0.4891112,84538.0,84537.0,0.0121665]
[1744897575827,0.4891112,84538.0,84537.0,0.0120865]
[1744897576226,0.4891112,84538.0,84537.0,0.23369647]
[1744897576533,0.4891112,84538.0,84537.0,0.47219891]
[1744897576734,0.1283112,84538.0,84537.0,0.47219891]
[1744897576937,0.01,84538.0,84537.0,0.47219891]
[1744897577124,0.1283112,84538.0,84537.0,0.47219891]
[1744897578425,0.01,84538.0,84537.0,0.47219891]
[1744897578729,0.01,84538.0,84537.0,0.56859891]
[1744897579028,0.1283112,84538.0,84537.0,0.56859891]
[1744897579231,0.1283112,84538.0,84537.0,0.35388631]
[1744897579441,0.4891112,84538.0,84537.0,0.0121665]
[1744897579826,0.6819112,84538.0,84537.0,0.0121665]
[1744897580026,0.6819112,84538.0,84537.0,0.1304791]
[1744897580226,0.6819112,84538.0,84537.0,0.2286791]
[1744897581542,0.5636,84538.0,84537.0,0.2286791]
[1744897581731,0.6819112,84538.0,84537.0,0.3272791]
[1744897582741,0.6819112,84538.0,84537.0,0.0121665]
[1744897582941,0.6819112,84538.0,84537.0,0.0120865]
[1744897582942,0.6919112,84538.0,84537.0,0.0120865]
[1744897583132,0.6919112,84538.0,84537.0,0.0121665]
[1744897583330,0.118321,84531.0,84530.0,0.02]
[1744897583536,0.1183336,84522.0,84521.0,0.0927]
[1744897583736,0.4991336,84522.0,84521.0,0.211035]
[1744897584238,0.6987336,84522.0,84521.0,0.09278]
[1744897584540,0.6987336,84522.0,84521.0,0.211035]
[1744897584741,0.6987336,84522.0,84521.0,0.214035]
[1744897585134,0.6987336,84522.0,84521.0,0.214115]
[1744897585334,0.6987336,84522.0,84521.0,0.217115]
[1744897586335,0.6987336,84522.0,84521.0,0.00608]
[1744897586534,0.6987336,84522.0,84521.0,0.124415]
[1744897587344,0.6987336,84522.0,84521.0,0.223215]
[1744897588136,0.6987336,84522.0,84521.0,0.10488]
[1744897588444,0.6987336,84522.0,84521.0,0.006]
[1744897588644,0.6987336,84522.0,84521.0,0.00608]
[1744897589040,0.5904,84522.0,84499.0,0.08128]
[1744897589247,0.36113842,84510.0,84509.0,0.000108]
[1744897589429,0.1183574,84505.0,84504.0,0.0915]
[1744897589634,0.1183658,84499.0,84498.0,0.2147662]
[1744897589838,0.4991658,84499.0,84498.0,0.43637617]
[1744897590241,0.4991658,84499.0,84498.0,0.43645617]
[1744897590435,0.02,84499.0,84498.0,0.55664601]
[1744897591451,0.1393658,84499.0,84498.0,0.46924601]
[1744897591935,0.2383658,84499.0,84498.0,0.56084601]
[1744897592339,0.2383658,84499.0,84498.0,0.56076601]
[1744897592751,0.1183729,84494.0,84493.0,0.13039666]
[1744897592949,0.4991729,84494.0,84493.0,0.13039666]
[1744897593143,0.0591906,84489.0,84488.0,0.0001458]
[1744897593343,0.1183841,84486.0,84479.0,0.1929]
[1744897593647,0.4991841,84486.0,84479.0,0.1929]
[1744897593848,0.4991841,84486.0,84484.0,0.1183865]
[1744897594146,0.4991841,84486.0,84485.0,0.00516963]
[1744897594341,0.4991841,84486.0,84485.0,0.12355513]
[1744897594540,0.5001841,84486.0,84485.0,0.12755513]
[1744897594737,0.5001841,84486.0,84485.0,0.13155513]
[1744897595137,0.5001841,84486.0,84485.0,0.01316963]
[1744897595449,0.5001841,84486.0,84485.0,0.01308963]
[1744897595841,0.5001841,84486.0,84485.0,0.01316963]
[1744897596037,0.5001841,84486.0,84485.0,0.13155513]
[1744897596748,0.5001841,84486.0,84485.0,0.3531651]
[1744897596945,0.5001841,84486.0,84485.0,0.4522651]
[1744897597145,0.3818,84486.0,84485.0,0.57245494]
[1744897598049,0.5001841,84486.0,84485.0,0.45406944]
[1744897598238,0.0591955,84481.0,84470.0,1.55848]
[1744897598443,0.1184107,84467.0,84466.0,0.00026572]
[1744897598743,0.4992107,84467.0,84466.0,0.09936572]
[1744897599053,0.1184149,84464.0,84463.0,0.1012]
[1744897599244,0.4992149,84464.0,84463.0,0.1012]
[1744897599445,0.4992149,84464.0,84463.0,0.44299981]
[1744897599644,0.4992149,84464.0,84463.0,0.44307981]
[1744897599845,0.4992149,84464.0,84463.0,0.44299981]
[1744897600043,0.4992149,84464.0,84463.0,8e-05]
[1744897600358,0.1184205,84460.0,84459.0,0.0050912]
[1744897600653,0.1384205,84460.0,84459.0,0.0050912]
[1744897600850,0.1384205,84460.0,84459.0,0.34689101]
[1744897601052,0.1384205,84460.0,84459.0,0.0050912]
[1744897601246,0.2378205,84460.0,84459.0,0.0050912]
[1744897601453,0.2378205,84460.0,84442.0,0.29848631]
[1744897601454,0.1184443,84443.0,84442.0,0.29848631]
[1744897601644,0.4992443,84443.0,84442.0,0.29848631]
[1744897602041,0.4992443,84443.0,84442.0,0.29856631]
[1744897602655,0.4992443,84443.0,84442.0,0.64036612]
[1744897603252,0.1384443,84443.0,84442.0,0.75881182]
[1744897603449,0.3608,84448.0,84447.0,0.1184387]
[1744897603650,0.3808,84448.0,84447.0,0.23862854]
[1744897603845,0.4992373,84448.0,84447.0,0.46023851]
[1744897604155,0.4992373,84448.0,84447.0,0.34004867]
[1744897604358,0.4992373,84448.0,84447.0,0.46023851]
[1744897604553,0.5002373,84448.0,84447.0,0.46023851]
[1744897605760,0.6018373,84448.0,84447.0,0.46023851]
[1744897606758,0.5002373,84448.0,84447.0,0.46023851]
[1744897608142,0.5012373,84448.0,84447.0,0.46023851]
[1744897608656,0.5052373,84448.0,84447.0,0.46023851]
[1744897612157,0.3868,84448.0,84447.0,0.46023851]
[1744897612363,0.5052373,84448.0,84447.0,0.46023851]
[1744897614361,0.5052373,84448.0,84447.0,0.64243851]
[1744897615361,0.5953373,84448.0,84447.0,0.64243851]
[1744897616663,0.6859373,84448.0,84447.0,0.46023851]
[1744897616967,0.6859373,84448.0,84438.0,0.0792251]
[1744897616968,0.11845,84439.0,84438.0,0.02]
[1744897617149,0.1184542,84436.0,84435.0,0.000108]
[1744897617350,0.1384542,84436.0,84435.0,0.23875344]
[1744897617549,0.3191542,84436.0,84435.0,0.23875344]
[1744897618354,0.3201542,84436.0,84435.0,0.23875344]
[1744897619765,0.6809542,84436.0,84435.0,0.000108]
[1744897619991,0.6809542,84436.0,84427.0,0.1786]
[1744897619992,0.1184654,84429.0,84427.0,0.1786]
[1744897620167,0.1384654,84429.0,84428.0,0.35711714]
[1744897620462,0.5883654,84429.0,84428.0,0.35711714]
[1744897620652,0.5883654,84429.0,84428.0,0.75732711]
[1744897621465,0.4992654,84429.0,84428.0,0.75732711]
[1744897621958,0.3818,84429.0,84428.0,0.75832711]
[1744897623263,0.021,84429.0,84428.0,0.75832711]
[1744897623467,0.1184314,84453.0,84439.0,0.0592244]
[1744897623768,0.5298373,84448.0,84447.0,0.46023851]
[1744897624566,0.5318373,84448.0,84447.0,0.46023851]
[1744897624768,0.5378373,84448.0,84447.0,0.63633851]
[1744897625063,0.0853,84457.0,84447.0,0.63633851]
[1744897625064,0.3608,84469.0,84461.0,0.1184191]
[1744897625259,0.0854,84475.0,84474.0,0.1184009]
[1744897625563,0.2037995,84475.0,84474.0,0.34179981]
[1744897625764,0.1184121,84466.0,84465.0,0.1384131]
[1744897625967,0.3608,84467.0,84466.0,0.1184121]
[1744897626168,0.2368116,84472.0,84471.0,0.46020491]
[1744897626469,0.1184065,84470.0,84469.0,0.118407]
[1744897626656,0.1184065,84470.0,84469.0,0.23859684]
[1744897626857,0.0592067,84466.0,84462.0,0.1791]
[1744897627057,0.4792163,84463.0,84462.0,0.1184158]
[1744897627354,0.4792163,84463.0,84462.0,0.1184958]
[1744897627664,0.4792163,84463.0,84462.0,0.46029561]
[1744897627853,0.4792163,84463.0,84462.0,0.46021561]
[1744897628057,0.4792163,84463.0,84462.0,0.46121561]
[1744897628256,0.4792163,84463.0,84462.0,0.46129561]
[1744897628759,0.4792163,84463.0,84462.0,0.23968564]
[1744897629067,0.4792163,84463.0,84462.0,0.1184958]
[1744897629373,0.4792163,84463.0,84453.0,0.2864]
[1744897629374,0.1184233,84458.0,84453.0,0.02]
[1744897629555,0.1184233,84458.0,84452.0,0.08072]
[1744897629968,0.2111233,84458.0,84452.0,0.08072]
[1744897630265,0.2111233,84458.0,84457.0,0.00025759]
[1744897630670,0.2141233,84458.0,84457.0,0.00025759]
[1744897630869,0.2191233,84458.0,84457.0,0.11968229]
[1744897631568,0.2191233,84458.0,84457.0,0.4614821]
[1744897633062,0.008,84458.0,84457.0,0.6441821]
[1744897633662,0.008,84458.0,84457.0,0.42257213]
[1744897633859,0.008,84458.0,84457.0,0.6441821]
[1744897634064,0.008,84458.0,84457.0,0.52399226]
[1744897634367,0.008,84458.0,84457.0,0.6441821]
[1744897638960,0.1264233,84458.0,84457.0,0.6441821]
[1744897639470,0.2145233,84458.0,84457.0,0.12136743]
[1744897639773,0.2145233,84458.0,84457.0,0.23987213]
[1744897639975,0.0961,84458.0,84457.0,0.23979213]
[1744897640274,0.0961,84458.0,84457.0,0.4614821]
[1744897640275,0.1012,84458.0,84457.0,0.4614821]
[1744897640577,0.008,84458.0,84457.0,0.6406821]
[1744897640878,0.008,84458.0,84457.0,0.6406021]
[1744897641171,0.1264233,84458.0,84457.0,0.4614021]
[1744897641377,0.3043233,84458.0,84457.0,0.4614821]
[1744897641578,0.3043233,84458.0,84457.0,0.5478821]
[1744897641770,0.3043233,84458.0,84457.0,0.6406821]
[1744897642372,0.008,84458.0,84457.0,0.6406821]
[1744897642676,0.008,84458.0,84457.0,1.0014821]
[1744897642870,0.1014,84458.0,84457.0,1.0014821]
[1744897643368,0.0994,84458.0,84457.0,1.0014821]
[1744897643774,0.4552,84458.0,84457.0,0.6396821]
[1744897644077,0.4592,84458.0,84457.0,0.6406821]
[1744897644376,0.4552,84458.0,84457.0,0.6396821]
[1744897644578,0.4582,84458.0,84457.0,0.6406821]
[1744897645775,0.0592073,84465.0,84457.0,0.6406821]
[1744897645776,0.3608,84476.0,84473.0,0.1184023]
[1744897646082,0.11857939,84474.0,84473.0,0.1184023]
[1744897646278,0.00017759,84474.0,84473.0,0.1184023]
[1744897646469,0.00017759,84474.0,84473.0,0.46020211]
[1744897646872,0.00017759,84474.0,84473.0,0.23859214]
[1744897647066,0.00417759,84474.0,84470.0,0.1776058]
[1744897647283,0.1776062,84473.0,84472.0,0.1184023]
[1744897647473,0.3550062,84473.0,84472.0,0.1184023]
[1744897647875,0.2366011,84473.0,84472.0,0.1776041]
[1744897648474,0.3038023,84473.0,84472.0,0.1786041]
[1744897649167,0.6646023,84473.0,84472.0,0.001]
[1744897649384,0.0592054,84467.0,84463.0,0.02]
[1744897649576,0.0592089,84462.0,84461.0,0.0593172]
[1744897649973,0.0592089,84462.0,84461.0,0.0592092]
[1744897650283,0.0592089,84462.0,84461.0,8e-05]
[1744897650680,0.2382089,84462.0,84461.0,8e-05]
[1744897650872,0.1184233,84458.0,84457.0,0.00017759]
[1744897651072,0.1184233,84458.0,84457.0,0.11860229]
[1744897651278,0.2974233,84458.0,84457.0,0.11860229]
[1744897653274,0.0883,84458.0,84457.0,0.11860229]
[1744897653475,0.0883,84458.0,84457.0,0.5530021]
[1744897653683,0.0883,84458.0,84457.0,0.7313021]
[1744897653889,0.0923,84458.0,84457.0,0.7323021]
[1744897654082,0.009,84458.0,84457.0,0.7323021]
[1744897654480,0.005,84458.0,84457.0,0.7323021]
[1744897655486,0.1234233,84458.0,84457.0,0.7323021]
[1744897655685,0.1434233,84458.0,84457.0,0.00117759]
[1744897655883,0.1184373,84448.0,84447.0,0.02]
[1744897656183,0.0592236,84441.0,84440.0,0.1776668]
[1744897656492,0.4200236,84441.0,84440.0,0.39927677]
[1744897656689,0.4200236,84441.0,84440.0,0.51946661]
[1744897656880,0.4200236,84441.0,84440.0,0.69016661]
[1744897657286,0.4210236,84441.0,84440.0,0.51946661]
[1744897657587,0.3618,84441.0,84440.0,0.51946661]
[1744897657892,0.3618,84441.0,84440.0,0.69016661]
[1744897658997,0.3618,84441.0,84440.0,0.70016661]
[1744897659694,0.3618,84441.0,84440.0,0.70116661]
[1744897659994,0.4812471,84441.0,84440.0,0.69116661]
[1744897660390,0.4544,84441.0,84440.0,0.69116661]
[1744897660578,0.3618,84441.0,84440.0,0.69116661]
[1744897660788,0.3618,84441.0,84440.0,0.69124661]
[1744897660990,0.3618,84441.0,84440.0,0.69016661]
[1744897661292,0.002,84441.0,84440.0,0.69124661]
[1744897661686,0.0876,84448.0,84447.0,0.1184387]
[1744897661887,0.0876,84448.0,84447.0,0.54155851]
[1744897662082,0.00017759,84449.0,84448.0,0.1184373]
[1744897662392,0.0592094,84465.0,84464.0,0.1776167]
[1744897662597,0.1776296,84465.0,84464.0,0.059206]
[1744897662980,0.1776296,84465.0,84464.0,0.059286]
[1744897663186,0.1776296,84465.0,84464.0,8e-05]
[1744897663386,0.1776296,84465.0,84464.0,0.1184949]
[1744897664097,0.1876296,84465.0,84464.0,0.1194949]
[1744897665697,0.1846296,84465.0,84464.0,0.1194949]
[1744897665882,0.1876296,84465.0,84464.0,0.1194949]
[1744897666584,0.1876296,84465.0,84464.0,0.00108]
[1744897667287,0.1836296,84465.0,84464.0,0.00108]
[1744897667589,0.1866296,84465.0,84464.0,0.00108]
[1744897667792,0.0622094,84465.0,84464.0,0.1184949]
[1744897667994,0.0692094,84465.0,84464.0,0.1194949]
[1744897668388,0.0622094,84465.0,84464.0,8e-05]
[1744897668588,0.0682094,84465.0,84464.0,0.00108]
[1744897668891,0.1537094,84465.0,84464.0,0.00108]
[1744897669099,0.1477094,84465.0,84464.0,8e-05]
[1744897669898,0.1477094,84465.0,84462.0,0.1184165]
[1744897669899,0.1184163,84463.0,84462.0,0.1184165]
[1744897670094,0.0592096,84461.0,84456.0,0.05939019]
[1744897670293,0.1184247,84457.0,84456.0,0.00017759]
[1744897670496,0.1284247,84457.0,84456.0,0.00017759]
[1744897670691,0.1184359,84449.0,84448.0,0.02]
[1744897670890,0.1184373,84448.0,84447.0,0.08132]
[1744897671083,0.1184373,84448.0,84445.0,0.1185484]
[1744897671084,0.1184401,84446.0,84445.0,0.000108]
[1744897671394,0.4792401,84446.0,84445.0,0.000108]
[1744897671600,0.1184486,84440.0,84439.0,0.1776735]
[1744897671797,0.1184486,84440.0,84436.0,0.171528]
[1744897671999,0.118457,84434.0,84430.0,0.0592312]
[1744897672198,0.118457,84434.0,84429.0,0.02]
[1744897672199,0.779257,84434.0,84433.0,0.12355117]
[1744897672388,0.779257,84434.0,84433.0,0.00509277]
[1744897672699,0.779257,84434.0,84433.0,0.00517277]
[1744897672899,0.779257,84434.0,84433.0,0.12355117]
[1744897673196,0.779257,84434.0,84433.0,0.00517277]
[1744897673197,0.499257,84434.0,84433.0,0.00517277]
[1744897673399,0.499257,84434.0,84433.0,0.12355117]
[1744897673702,0.499257,84434.0,84433.0,0.12463117]
[1744897674091,0.02,84434.0,84433.0,0.46643098]
[1744897674302,0.002,84440.0,84439.0,0.11845]
[1744897674495,0.1184486,84440.0,84439.0,0.46024981]
[1744897674805,0.0937,84451.0,84440.0,0.1184486]
[1744897674991,0.4200222,84443.0,84442.0,0.1184457]
[1744897675386,0.4200222,84443.0,84442.0,0.46024551]
[1744897676388,0.3608,84443.0,84442.0,0.46024551]
[1744897676597,0.11915435,84449.0,84446.0,0.1776566]
[1744897676906,0.17837245,84449.0,84448.0,0.1184373]
[1744897677401,0.26707245,84449.0,84448.0,0.1184373]
[1744897677801,0.27207245,84449.0,84448.0,0.1184373]
[1744897678290,0.27207245,84449.0,84448.0,0.1194373]
[1744897678690,0.27407245,84449.0,84448.0,0.1194373]
[1744897679400,0.1549181,84449.0,84448.0,0.1194373]
[1744897680088,0.1549181,84449.0,84448.0,0.2114373]
[1744897680293,0.2453181,84449.0,84448.0,0.3035373]
[1744897681095,0.0974,84449.0,84448.0,0.64533711]
[1744897681290,0.007,84449.0,84448.0,0.64533711]
[1744897682707,0.1254359,84449.0,84448.0,0.64533711]
[1744897683703,0.1254359,84449.0,84448.0,0.1194373]
[1744897684007,0.2168359,84449.0,84448.0,0.1195173]
[1744897684197,0.3069359,84449.0,84448.0,0.1195173]
[1744897685507,0.3069359,84449.0,84448.0,0.2997173]
[1744897686604,0.3069359,84449.0,84448.0,0.00108]
[1744897686903,0.3069359,84449.0,84448.0,0.001]
[1744897687407,0.3069359,84449.0,84448.0,0.00108]
[1744897688500,0.3169359,84449.0,84448.0,0.00108]
[1744897688808,0.1184471,84441.0,84440.0,0.020108]
[1744897688993,0.118457,84434.0,84431.0,0.02]
[1744897689195,0.789257,84434.0,84429.0,0.000108]
[1744897689394,0.967757,84434.0,84429.0,0.1184636]
[1744897689607,0.967757,84434.0,84433.0,0.12363117]
[1744897690706,0.967757,84434.0,84433.0,0.00517277]
[1744897691202,0.968757,84434.0,84433.0,0.12363117]
[1744897691606,0.968757,84434.0,84433.0,0.00517277]
[1744897692004,0.968757,84434.0,84433.0,0.12363117]
[1744897692511,0.968757,84434.0,84433.0,0.12463117]
[1744897692707,0.968757,84434.0,84433.0,0.00617277]
[1744897692911,0.877257,84434.0,84433.0,0.12463117]
[1744897693104,0.587257,84434.0,84433.0,0.12463117]
[1744897693408,0.673957,84434.0,84433.0,0.12455117]
[1744897693805,0.673957,84434.0,84433.0,0.21283117]
[1744897694414,0.673957,84434.0,84433.0,0.30643117]
[1744897695702,0.675957,84434.0,84433.0,0.30543117]
[1744897696606,0.674957,84434.0,84433.0,0.30543117]
[1744897696810,0.679957,84434.0,84433.0,0.30643117]
[1744897697210,0.677957,84434.0,84433.0,0.30643117]
[1744897697408,0.679957,84434.0,84433.0,0.30643117]
[1744897697803,0.674957,84434.0,84433.0,0.30643117]
[1744897698005,0.677957,84434.0,84433.0,0.30643117]
[1744897698209,0.679957,84434.0,84433.0,0.30643117]
[1744897698914,1.040757,84434.0,84433.0,0.30643117]
[1744897699412,0.954057,84434.0,84433.0,0.30643117]
[1744897700112,1.049757,84434.0,84433.0,0.30643117]
[1744897700814,1.044757,84434.0,84433.0,0.30543117]
[1744897701013,1.049757,84434.0,84433.0,0.30643117]
[1744897701419,1.044757,84434.0,84433.0,0.30543117]
[1744897701605,1.044757,84434.0,84433.0,0.30643117]
[1744897701606,0.954057,84434.0,84433.0,0.30643117]
[1744897702315,0.8356,84434.0,84433.0,0.64823098]
[1744897702619,0.3608,84447.0,84446.0,0.1184401]
[1744897702804,0.11915435,84449.0,84447.0,0.1184387]
[1744897702805,0.0866,84448.0,84447.0,0.1184387]
[1744897703128,0.11915435,84449.0,84448.0,0.46023711]
[1744897703300,0.11915435,84449.0,84448.0,0.82103711]
[1744897703508,0.14933019,84456.0,84455.0,0.1184275]
[1744897703703,0.14933019,84456.0,84455.0,0.53974731]
[1744897704012,0.14933019,84457.0,84456.0,0.1184261]
[1744897704214,0.14933019,84457.0,84456.0,0.3041261]
[1744897704416,0.14933019,84457.0,84456.0,0.64592591]
[1744897704718,0.17795895,84463.0,84462.0,0.1154177]
[1744897704905,0.17795895,84463.0,84462.0,0.45721751]
[1744897705106,0.17795895,84463.0,84462.0,0.45121751]
[1744897705516,0.17795895,84463.0,84462.0,0.63291751]
[1744897706816,0.17795895,84463.0,84462.0,0.63091751]
[1744897707315,0.17795895,84463.0,84462.0,0.63191751]
[1744897707519,0.1183991,84476.0,84474.0,0.1184009]
[1744897707822,0.059199,84477.0,84474.0,0.46020071]
[1744897708120,0.4791995,84475.0,84474.0,0.46020071]
[1744897708615,0.8399995,84475.0,84474.0,0.46020071]
[1744897708815,0.3628,84475.0,84474.0,0.46020071]
[1744897709016,0.3628,84475.0,84474.0,0.73660071]
[1744897709222,0.4811995,84475.0,84474.0,0.73660071]
[1744897709920,0.3658,84475.0,84474.0,0.73660071]
[1744897710514,0.4841995,84475.0,84474.0,0.73660071]
[1744897710710,0.3658,84475.0,84468.0,0.07952]
[1744897710909,0.1184079,84470.0,84469.0,0.23859504]
[1744897711320,0.3054079,84470.0,84469.0,0.1184052]
[1744897711619,0.1184079,84469.0,84468.0,0.07952]
[1744897711805,0.4792079,84469.0,84468.0,0.1979293]
[1744897712011,0.5712079,84469.0,84468.0,0.1979293]
[1744897712212,0.6662079,84469.0,84468.0,0.1979293]
[1744897712617,0.092,84469.0,84468.0,0.53972911]
[1744897713009,0.2104079,84469.0,84468.0,0.53972911]
[1744897713211,0.092,84469.0,84468.0,0.72562911]
[1744897713610,0.2104079,84469.0,84468.0,0.72562911]
[1744897714321,0.2124079,84469.0,84468.0,0.72562911]
[1744897715130,0.094,84469.0,84468.0,0.72562911]
[1744897715512,0.2124079,84469.0,84468.0,0.72562911]
[1744897717209,0.4548,84469.0,84466.0,0.00017759]
[1744897717410,0.1184107,84467.0,84466.0,0.00017759]
[1744897717610,0.1184107,84467.0,84466.0,0.00025759]
[1744897717816,0.3167107,84467.0,84466.0,0.00025759]
[1744897718519,0.3167107,84467.0,84466.0,0.11858969]
[1744897718713,0.3167107,84467.0,84466.0,0.11866969]
[1744897719028,0.3067107,84467.0,84466.0,0.20866969]
[1744897719323,0.3067107,84467.0,84466.0,0.29896969]
[1744897719527,0.2109107,84467.0,84466.0,0.29896969]
[1744897719711,0.2109107,84467.0,84466.0,0.6407695]
[1744897719915,0.0925,84467.0,84466.0,0.6407695]
[1744897720120,0.2109107,84467.0,84466.0,0.6407695]
[1744897720322,0.2119107,84467.0,84466.0,0.6407695]
[1744897720515,0.002,84467.0,84466.0,0.6407695]
[1744897720716,0.3608,84469.0,84468.0,0.1184093]
[1744897720930,0.0884,84479.0,84478.0,0.1183953]
[1744897721228,0.36088,84482.0,84481.0,0.1183911]
[1744897721438,0.3608,84482.0,84481.0,0.46019091]
[1744897721726,0.36088,84482.0,84481.0,0.64049091]
[1744897721931,0.3608,84482.0,84481.0,0.64049091]
[1744897722118,0.36088,84482.0,84481.0,0.69968641]
[1744897722313,8e-05,84482.0,84481.0,0.69968641]
[1744897723521,0.00508,84482.0,84481.0,0.69968641]
[1744897723723,0.00808,84482.0,84481.0,0.69968641]
[1744897723925,0.10408,84482.0,84481.0,0.69968641]
[1744897724428,0.2224697,84482.0,84481.0,0.69976641]
[1744897724627,0.3171697,84482.0,84481.0,0.69976641]
[1744897724829,0.3171697,84482.0,84481.0,0.77928641]
[1744897725038,0.10408,84482.0,84481.0,0.77928641]
[1744897725620,0.104,84482.0,84481.0,0.77928641]
[1744897725915,0.10408,84482.0,84481.0,0.77928641]
[1744897726236,0.2224697,84482.0,84481.0,0.77928641]
[1744897726426,0.3133697,84482.0,84481.0,0.77920641]
[1744897726732,0.3133697,84482.0,84481.0,0.77928641]
[1744897727727,0.10408,84482.0,84481.0,0.77928641]
[1744897727921,0.104,84482.0,84481.0,0.77928641]
[1744897728319,0.10408,84482.0,84481.0,0.77928641]
[1744897728717,0.10408,84482.0,84481.0,0.69976641]
[1744897728928,0.0591997,84475.0,84474.0,0.07948]
[1744897729235,0.5383992,84475.0,84474.0,0.1978809]
[1744897729724,0.5383992,84475.0,84474.0,0.07956]
[1744897729930,0.7216992,84475.0,84474.0,0.07956]
[1744897730117,0.7266992,84475.0,84474.0,0.1979609]
[1744897732519,0.7266992,84475.0,84474.0,0.07956]
[1744897732721,0.7366992,84475.0,84474.0,0.07956]
[1744897733035,0.7366992,84475.0,84474.0,0.1978809]
[1744897733332,0.7366992,84475.0,84474.0,0.1979609]
[1744897736628,0.5266997,84475.0,84474.0,0.1979609]
[1744897736831,0.1558997,84475.0,84474.0,0.3810609]
[1744897737026,0.1558997,84475.0,84474.0,0.4768609]
[1744897737735,0.2433997,84475.0,84474.0,0.4768609]
[1744897740044,0.2433997,84475.0,84474.0,0.27898]
[1744897740232,0.1184079,84469.0,84468.0,0.000108]
[1744897740535,0.1184107,84467.0,84461.0,0.02]
[1744897740727,0.0909,84468.0,84467.0,0.1184107]
[1744897740931,0.005,84475.0,84474.0,0.1184009]
[1744897741129,0.005,84475.0,84474.0,0.64200071]
[1744897741633,0.003,84475.0,84474.0,0.64200071]